bitfinex-derivatives/quotes_SOLF0:USTF0_20240906
["timestamp","ask_amount","ask_price","bid_price","bid_amount"]
[1725655027836,27.89,124.15,124.03,1.3971]
[1725655027837,27.89,124.11,124.03,1.3971]
[1725655028144,27.89,124.11,123.98,29.2677]
[1725655028337,27.89,124.13,124.0,30.7056]
[1725655028638,27.89,124.16,124.08,4.0321]
[1725655029049,27.89,124.16,124.03,27.89]
[1725655029238,27.89,124.13,124.01,27.89]
[1725655029437,27.89,124.16,124.03,27.89]
[1725655030545,27.89,124.13,124.01,27.89]
[1725655031042,1.3828,124.19,124.0,2.8156]
[1725655031043,27.89,124.11,124.0,2.8156]
[1725655031248,27.89,124.13,124.01,27.89]
[1725655031434,27.89,124.15,124.03,27.89]
[1725655031639,27.89,124.18,124.05,27.89]
[1725655031845,231.028,124.21,124.07,27.89]
[1725655032042,27.89,124.2,124.08,1.5009]
[1725655032238,227.0,124.21,124.08,1.5009]
[1725655032239,27.89,124.17,124.08,1.5009]
[1725655032439,27.89,124.15,124.08,1.5009]
[1725655032635,27.89,124.17,124.08,1.5009]
[1725655032842,27.89,124.15,124.08,1.5009]
[1725655033647,27.89,124.18,124.08,1.5009]
[1725655033842,27.89,124.16,124.08,1.5009]
[1725655034245,27.89,124.13,124.0,29.3085]
[1725655034436,27.89,124.13,124.01,1.5009]
[1725655034835,27.89,124.13,124.03,4.0338]
[1725655035044,27.89,124.13,124.01,1.5009]
[1725655035240,1.4987,124.15,124.01,1.5009]
[1725655035241,27.89,124.1,124.01,1.5009]
[1725655035445,27.89,124.06,123.93,27.89]
[1725655035742,27.89,124.06,123.94,2.90971086]
[1725655036140,254.89,124.11,123.98,27.89]
[1725655036343,27.89,124.11,123.98,27.89]
[1725655036736,27.89,124.11,123.99,1.4565]
[1725655036935,4.0318,124.1,124.02,4.0341]
[1725655037136,27.89,124.13,124.01,27.89]
[1725655037348,27.89,124.13,124.02,1.4271]
[1725655037541,27.89,124.11,124.02,1.4271]
[1725655038249,27.89,124.13,124.02,1.4271]
[1725655038645,4.0315,124.11,124.03,27.89]
[1725655038843,27.89,124.08,123.96,27.89]
[1725655039045,27.89,124.05,123.95,1.3662]
[1725655039246,4.0338,124.04,123.96,4.036]
[1725655039446,27.89,124.03,123.94,1.48261086]
[1725655039651,27.89,124.01,123.94,1.48261086]
[1725655039843,27.89,123.99,123.94,1.48261086]
[1725655040852,27.89,124.02,123.94,1.48261086]
[1725655041044,29.3414,124.04,123.94,1.48261086]
[1725655041251,33.375,124.04,123.96,4.0359]
[1725655041645,27.89,124.01,123.94,1.48261086]
[1725655042952,29.3414,124.04,123.94,1.48261086]
[1725655043449,29.3414,124.04,123.96,4.0361]
[1725655043848,4.0339,124.03,123.96,4.0361]
[1725655044047,29.3414,124.04,123.97,4.0358]
[1725655044252,27.89,124.06,123.94,29.37261086]
[1725655044947,5.4866,124.07,124.0,4.0345]
[1725655045151,4.0328,124.07,124.0,4.0345]
[1725655045451,31.9117,124.1,123.99,4.01297]
[1725655045655,27.88,124.1,124.0,1.4887]
[1725655045852,229.9047,124.12,124.0,29.3687]
[1725655046158,1.4306,124.12,124.0,29.3687]
[1725655046354,1.4306,124.12,124.01,1.4442]
[1725655046759,27.88,124.13,124.01,1.4442]
[1725655048361,27.88,124.15,124.01,29.3242]
[1725655048949,27.88,124.1,124.0,1.4887]
[1725655049259,27.88,124.05,123.94,29.3686]
[1725655049460,27.88,124.05,123.94,1.4886]
[1725655049864,4.0341,124.03,123.96,4.0359]
[1725655050161,27.88,124.05,123.94,1.4886]
[1725655050563,29.3771,124.08,123.96,27.88]
[1725655050956,29.3771,124.08,124.0,4.0346]
[1725655051351,29.3771,124.08,123.96,27.88]
[1725655051352,29.3771,124.08,123.99,4.05788366]
[1725655051562,1.4971,124.08,123.98,27.88]
[1725655051858,27.88,124.13,124.0,27.88]
[1725655052060,27.88,124.13,124.01,1.3907]
[1725655052267,27.88,124.15,124.03,27.88]
[1725655053268,2.8684,124.16,124.03,27.88]
[1725655053269,4.0303,124.14,124.03,27.89]
[1725655053658,27.89,124.13,124.02,2.8692]
[1725655053859,4.0311,124.12,124.02,2.8692]
[1725655054065,27.89,124.13,124.02,2.8692]
[1725655054266,27.89,124.16,124.03,27.89]
[1725655054962,4.0302,124.15,124.03,27.89]
[1725655055461,4.0301,124.15,124.08,4.0322]
[1725655055961,27.89,124.19,124.08,3.999578]
[1725655056167,27.89,124.19,124.06,27.89]
[1725655056466,4.0294,124.17,124.06,27.89]
[1725655057566,27.89,124.19,124.06,27.89]
[1725655057964,27.89,124.16,124.07,8.04770056]
[1725655058257,27.89,124.16,124.02,2.8692]
[1725655058258,27.89,124.14,124.02,2.8692]
[1725655058456,27.89,124.14,124.04,4.0333]
[1725655058660,27.89,124.14,124.02,2.8692]
[1725655058871,27.89,124.11,124.02,2.8692]
[1725655059164,27.89,124.11,124.01,1.3907]
[1725655059464,1.4202,124.13,124.01,1.3907]
[1725655059465,29.3102,124.13,124.01,1.3907]
[1725655060159,33.3408,124.13,124.06,4.0326]
[1725655060361,27.89,124.11,124.01,1.3907]
[1725655060770,1.4202,124.13,124.01,29.2807]
[1725655060956,1.4202,124.13,124.04,27.89]
[1725655062163,27.89,124.15,124.02,1.4563]
[1725655062367,27.89,124.13,124.02,1.4563]
[1725655062565,27.89,124.11,124.01,1.3907]
[1725655063368,4.0311,124.12,124.04,4.0333]
[1725655063868,27.89,124.14,124.02,27.89]
[1725655064263,31.9204,124.14,124.06,4.0327]
[1725655064470,31.9204,124.14,124.02,27.89]
[1725655064767,27.89,124.14,124.02,27.89]
[1725655065365,4.0309,124.13,124.02,27.89]
[1725655065568,27.89,124.14,124.02,27.89]
[1725655065970,31.9203,124.14,124.06,4.0326]
[1725655066268,27.89,124.14,124.06,4.0326]
[1725655066468,27.89,124.14,124.07,4.0323]
[1725655067061,31.9203,124.14,124.07,4.0323]
[1725655067262,31.9203,124.14,124.07,8.15470332]
[1725655067466,27.89,124.14,124.06,4.0328]
[1725655067668,4.0306,124.13,124.02,27.89]
[1725655068059,4.031,124.12,124.05,4.0331]
[1725655068261,27.89,124.12,124.01,1.3907]
[1725655068462,27.89,124.1,124.01,1.3907]
[1725655068869,1.3646,124.09,124.01,1.3907]
[1725655069470,1.3646,124.09,124.03,4.0336]
[1725655069772,1.3646,124.09,124.01,1.3907]
[1725655069973,1.383,124.14,124.02,27.89]
[1725655070365,4.0307,124.13,124.06,4.0326]
[1725655070674,4.0307,124.13,124.02,27.89]
[1725655070675,1.383,124.14,124.07,3.95241031]
[1725655070972,4.031,124.12,124.06,4.0327]
[1725655071177,27.89,124.15,124.07,3.95224097]
[1725655071373,27.89,124.15,124.04,27.89]
[1725655071573,4.0305,124.14,124.08,4.0322]
[1725655072073,4.0307,124.13,124.08,4.0322]
[1725655072673,4.0304,124.14,124.08,4.0322]
[1725655072869,27.89,124.15,124.07,4.01070607]
[1725655073072,4.0308,124.13,124.04,27.89]
[1725655073272,1.383,124.16,124.04,27.89]
[1725655073474,1.383,124.16,124.07,27.89]
[1725655073778,1.383,124.16,124.07,31.89385154]
[1725655073965,1.383,124.16,124.07,4.00385154]
[1725655074172,27.89,124.15,124.02,27.89]
[1725655074370,31.89997723,124.15,124.02,27.89]
[1725655074676,27.89,124.15,124.02,27.89]
[1725655074878,31.85441389,124.15,124.02,27.89]
[1725655075075,4.0314,124.11,124.05,4.0329]
[1725655075274,31.85441389,124.15,124.02,27.89]
[1725655075469,31.85441389,124.15,124.01,1.3907]
[1725655075470,27.89,124.12,124.01,1.3907]
[1725655075768,4.0325,124.08,124.01,1.3907]
[1725655075975,27.89,124.1,124.01,1.3907]
[1725655076176,27.89,124.1,124.01,5.4252]
[1725655076177,4.0331,124.06,124.01,5.4252]
[1725655076576,4.0331,124.06,124.01,4.0345]
[1725655076772,4.0327,124.07,124.02,4.0341]
[1725655077087,2.4418,124.1,123.99,1.4589]
[1725655077372,31.90159009,124.12,124.02,4.03376694]
[1725655077679,1.4104,124.15,124.02,8.071]
[1725655078176,1.4104,124.15,124.03,1.4033]
[1725655078578,4.0307,124.13,124.07,4.0324]
[1725655078779,1.4104,124.15,124.04,35.961]
[1725655079277,1.4104,124.15,124.04,27.89]
[1725655079668,4.0312,124.12,124.06,4.0327]
[1725655079872,4.0312,124.12,124.06,8.13471636]
[1725655080072,5.46159991,124.15,124.06,8.13471636]
[1725655080272,1.4104,124.15,124.06,4.10201636]
[1725655080470,1.383,124.16,124.03,1.4033]
[1725655080672,27.89,124.15,124.03,1.4033]
[1725655080867,27.89,124.12,124.03,1.4033]
[1725655081069,27.89,124.12,124.0,27.89]
[1725655081267,1.383,124.16,123.99,5.48751483]
[1725655081268,27.89,124.1,123.99,5.48751483]
[1725655081681,27.89,124.08,123.99,4.02861483]
[1725655081881,27.89,124.08,123.97,1.4049]
[1725655082679,30.3167,124.11,123.93,1.5111]
[1725655082868,27.89,124.02,123.9,1.4049]
[1725655083070,27.89,124.05,123.92,27.89]
[1725655083283,27.89,124.05,123.95,4.0362]
[1725655083487,27.89,124.05,123.92,27.89]
[1725655083674,27.89,124.03,123.9,2.916]
[1725655083875,27.89,124.03,123.9,6.95197906]
[1725655084283,27.89,124.03,123.92,4.0371]
[1725655084284,4.0346,124.01,123.92,4.0371]
[1725655084474,0.9365,124.04,123.9,6.95197906]
[1725655084675,0.9365,124.04,123.93,27.89]
[1725655084878,4.0333,124.05,123.96,4.0361]
[1725655085178,1.4723,124.06,123.95,27.89]
[1725655085981,1.4723,124.06,123.93,27.89]
[1725655086374,27.89,124.02,123.9,6.95197906]
[1725655086780,27.89,124.02,123.92,4.0374]
[1725655086781,4.0346,124.01,123.92,4.0374]
[1725655086974,4.0346,124.01,123.9,6.95197906]
[1725655087170,4.0348,124.0,123.9,6.95197906]
[1725655087472,27.89,124.0,123.9,6.95197906]
[1725655087881,27.89,124.0,123.91,4.0377]
[1725655088875,28.8263,124.02,123.9,6.95197906]
[1725655089076,1.4622,124.03,123.92,27.89]
[1725655089285,5.4961,124.03,123.95,4.0364]
[1725655089680,1.4622,124.03,123.92,27.89]
[1725655090382,4.0343,124.02,123.95,4.0362]
[1725655090675,27.89,124.0,123.9,6.95197906]
[1725655090876,4.0355,123.98,123.91,4.0377]
[1725655091080,27.89,124.0,123.91,4.0377]
[1725655091279,4.0348,124.01,123.9,6.95197906]
[1725655091579,28.8267,124.02,123.9,6.95197906]
[1725655092277,4.0345,124.01,123.94,4.0366]
[1725655092479,28.8267,124.02,123.9,6.95197906]
[1725655092784,1.4622,124.03,123.92,27.89]
[1725655093082,1.4622,124.03,123.9,6.95197906]
[1725655093083,27.89,124.02,123.9,6.95197906]
[1725655093282,4.0346,124.01,123.94,4.0365]
[1725655093482,27.89,124.02,123.9,6.95197906]
[1725655093872,4.0347,124.01,123.9,34.84197906]
[1725655094378,27.89,124.02,123.9,34.84197906]
[1725655094576,27.89,124.02,123.78,8.071]
[1725655094577,27.89,123.99,123.78,8.071]
[1725655094773,27.89,123.97,123.84,1.4032]
[1725655094978,27.89,123.97,123.84,5.46064631]
[1725655095276,27.89,123.94,123.84,5.46064631]
[1725655095677,27.89,123.96,123.84,5.46064631]
[1725655095877,1.3944,123.98,123.86,27.89]
[1725655096079,5.34086583,123.98,123.86,27.89]
[1725655096281,4.0369,123.94,123.87,4.0389]
[1725655097082,4.0369,123.94,123.88,4.0387]
[1725655097383,27.89,123.94,123.84,5.40495429]
[1725655097774,27.89,123.96,123.84,5.40495429]
[1725655097986,27.89,123.94,123.79,1.4154]
[1725655098182,27.89,123.94,123.8,30.7323]
[1725655098384,1.4509,123.93,123.8,30.7323]
[1725655098685,1.4509,123.93,123.8,34.72993562]
[1725655099083,1.4509,123.93,123.84,4.0398]
[1725655099282,1.4509,123.93,123.82,27.89]
[1725655099679,4.0379,123.91,123.83,4.0402]
[1725655099895,1.4509,123.93,123.82,27.89]
[1725655100383,4.0378,123.91,123.84,4.0398]
[1725655100779,1.4509,123.93,123.8,34.72993562]
[1725655101583,4.0381,123.91,123.8,34.72993562]
[1725655101983,27.89,123.86,123.72,8.071]
[1725655102178,27.89,123.86,123.73,2.93563041]
[1725655102382,27.89,123.86,123.73,1.451]
[1725655102684,4.0402,123.84,123.77,4.0421]
[1725655102883,4.0402,123.84,123.78,4.00271922]
[1725655103286,27.89,123.89,123.73,1.451]
[1725655103581,27.89,123.89,123.74,27.89]
[1725655103790,27.89,123.86,123.74,27.89]
[1725655104282,4.0405,123.83,123.76,4.0425]
[1725655105085,1.0,123.88,123.77,27.89]
[1725655105876,27.89,123.89,123.77,27.89]
[1725655106788,4.0392,123.87,123.77,27.89]
[1725655107284,27.89,123.89,123.77,27.89]
[1725655108189,4.0393,123.87,123.81,4.0408]
[1725655108380,27.89,123.89,123.77,27.89]
[1725655108580,2.4472,123.9,123.81,27.89]
[1725655108779,2.4472,123.9,123.82,4.07981422]
[1725655109085,4.0386,123.89,123.83,4.0403]
[1725655109583,2.4472,123.9,123.82,4.07981422]
[1725655109784,2.4472,123.9,123.81,27.89]
[1725655110285,2.4472,123.9,123.82,4.09087129]
[1725655110286,4.0386,123.89,123.82,4.09087129]
[1725655110979,4.0386,123.89,123.83,4.0402]
[1725655111182,4.0386,123.89,123.82,4.09087129]
[1725655111378,4.0386,123.89,123.81,27.89]
[1725655111580,6.4853,123.9,123.81,27.89]
[1725655111784,2.4472,123.9,123.81,31.97279136]
[1725655113186,1.4509,123.93,123.83,27.89]
[1725655113385,3.94260448,123.96,123.86,27.89]
[1725655113691,30.8561,124.0,123.88,27.89]
[1725655114084,4.1143031,123.99,123.88,27.89]
[1725655114387,227.0,124.03,123.95,27.89]
[1725655114691,1.3907,124.07,123.95,27.89]
[1725655114692,1.3907,124.07,123.96,2.8313]
[1725655114890,4.0334,124.05,123.98,4.0355]
[1725655115091,27.89,124.05,123.96,1.3724]
[1725655116290,4.0339,124.03,123.96,5.4083]
[1725655116490,27.89,124.03,123.91,29.4133]
[1725655116694,4.035,124.0,123.92,4.11119974]
[1725655116990,1.4482,124.02,123.91,33.47042094]
[1725655117190,5.44801355,124.02,123.92,1.3773]
[1725655117386,27.89,124.05,123.93,27.89]
[1725655117796,31.9234,124.05,123.98,4.0352]
[1725655118195,27.89,124.05,123.97,4.04178516]
[1725655118493,4.0338,124.04,123.97,4.0356]
[1725655118687,27.89,124.05,123.97,4.0356]
[1725655119491,4.0348,124.0,123.92,1.3773]
[1725655119789,4.03492474,124.0,123.92,5.36581847]
[1725655119993,27.89,124.01,123.92,9.40321847]
[1725655120390,4.0357,123.98,123.92,5.4147]
[1725655120586,27.89,124.01,123.92,5.51189735]
[1725655120796,4.11280658,124.0,123.92,5.51189735]
[1725655121090,27.89,124.01,123.94,4.0365]
[1725655121303,31.86721955,124.01,123.94,4.0365]
[1725655121797,4.0354,123.99,123.94,4.0365]
[1725655121986,31.86721955,124.01,123.92,5.51189735]
[1725655122392,31.86721955,124.01,123.92,1.3773]
[1725655122592,31.86721955,124.01,123.93,4.08294515]
[1725655122889,35.90191955,124.01,123.97,4.0358]
[1725655123092,27.89,124.01,123.92,5.3227881]
[1725655123292,27.89,124.01,123.92,1.3773]
[1725655123493,27.89,124.01,123.96,4.0359]
[1725655123692,27.89,124.01,123.96,4.11138023]
[1725655123897,27.89,124.04,123.96,4.11138023]
[1725655124103,29.3382,124.06,123.96,4.11138023]
[1725655124400,4.0336,124.04,123.96,4.11138023]
[1725655124697,4.0336,124.04,123.93,27.89]
[1725655124998,4.0341,124.03,123.93,31.85849503]
[1725655125493,4.0342,124.02,123.97,4.0356]
[1725655125698,4.0342,124.02,123.93,3.96849503]
[1725655125999,4.0342,124.02,123.92,1.3773]
[1725655126198,4.0339,124.03,123.92,1.3773]
[1725655126492,4.0339,124.03,123.92,5.45709135]
[1725655126693,227.0,124.11,123.96,27.89]
[1725655126890,2.8685,124.12,123.99,27.89]
[1725655127199,30.7585,124.12,124.0,2.7575]
[1725655127396,4.0317,124.1,124.0,6.7630473]
[1725655127795,38.7939368,124.12,124.0,6.7630473]
[1725655128094,34.7628368,124.12,124.01,27.89]
[1725655128297,34.7628368,124.12,124.05,4.0329]
[1725655128601,4.0313,124.11,124.05,4.0329]
[1725655128808,4.0313,124.11,124.01,27.89]
[1725655129292,34.7628368,124.12,124.05,4.0329]
[1725655129497,34.7628368,124.12,124.0,6.7630473]
[1725655129690,27.89,124.1,124.0,6.7630473]
[1725655130602,27.89,124.05,123.97,1.4242]
[1725655130801,27.89,124.03,123.93,2.8417]
[1725655130998,3.94367909,124.02,123.93,2.8417]
[1725655131201,27.89,124.03,123.93,2.8417]
[1725655131401,29.2958,124.03,123.93,2.8417]
[1725655131701,33.34997792,124.03,123.93,2.8417]
[1725655132598,35.9528,124.11,123.93,2.8417]
[1725655132599,27.89,124.07,123.95,27.89]
[1725655133004,4.0329,124.06,123.95,27.89]
[1725655133404,4.0329,124.06,124.0,4.0346]
[1725655133902,30.7928,124.1,124.02,4.0339]
[1725655134103,30.7928,124.1,123.99,4.03016005]
[1725655134104,30.7928,124.1,124.0,1.4089]
[1725655134804,30.7928,124.1,124.0,5.48990616]
[1725655135106,30.7928,124.1,124.0,1.4089]
[1725655135697,30.7928,124.1,124.02,4.034]
[1725655135698,4.0328,124.07,124.02,4.034]
[1725655136103,30.7928,124.1,123.93,1.4432]
[1725655136104,27.89,124.05,123.93,29.3332]
[1725655136307,4.0344,124.02,123.94,1.5246]
[1725655136508,27.89,124.03,123.94,1.5246]
[1725655136706,27.89,124.01,123.92,1.4842]
[1725655136906,27.89,124.01,123.92,4.0373]
[1725655137204,27.89,123.98,123.92,4.0373]
[1725655137407,31.9258,123.98,123.92,4.0373]
[1725655137707,27.89,123.98,123.88,2.8988]
[1725655137908,27.89,124.01,123.88,2.8988]
[1725655138405,4.0355,123.98,123.88,2.8988]
[1725655138803,27.89,124.01,123.88,2.8988]
[1725655138995,4.0354,123.99,123.88,2.8988]
[1725655139203,4.0354,123.99,123.93,4.0369]
[1725655140009,4.0354,123.99,123.94,4.0367]
[1725655140209,4.035,124.0,123.94,4.0367]
[1725655140397,2.8904,124.02,123.92,4.00966534]
[1725655140598,2.8904,124.02,123.93,1.3792]
[1725655140801,2.8904,124.02,123.93,5.33356797]
[1725655141106,4.0347,124.01,123.93,5.33356797]
[1725655141408,27.89,123.98,123.88,30.7888]
[1725655142108,2.8904,124.02,123.9,27.89]
[1725655142309,2.8904,124.02,123.96,4.0361]
[1725655142501,3.95455644,124.05,123.96,4.02629299]
[1725655142708,30.75,124.08,123.95,27.89]
[1725655143009,30.75,124.08,123.96,4.4338]
[1725655143406,30.75,124.08,124.0,4.0346]
[1725655143611,30.75,124.08,123.96,4.4338]
[1725655143612,2.86,124.08,123.97,27.89]
[1725655143823,571.0,124.11,123.96,4.4338]
[1725655143824,31.8943368,124.12,123.99,27.89]
[1725655144108,27.89,124.1,123.97,27.89]
[1725655144311,27.89,124.07,123.96,4.4338]
[1725655144508,27.89,124.07,123.99,4.0351]
[1725655144705,4.0333,124.05,123.99,4.0351]
[1725655144907,27.89,124.07,123.96,4.4338]
[1725655145199,4.0329,124.06,123.96,4.4338]
[1725655145401,27.89,124.07,123.96,4.4338]
[1725655146607,4.0329,124.06,124.0,4.0347]
[1725655146813,4.0329,124.06,123.96,4.4338]
[1725655146814,27.89,124.07,123.96,4.4338]
[1725655147502,4.0329,124.06,124.0,4.0346]
[1725655147908,27.89,124.07,123.96,4.4338]
[1725655148102,27.89,124.07,123.97,27.89]
[1725655148313,27.89,124.12,123.99,27.89]
[1725655148908,27.89,124.12,123.97,27.89]
[1725655149112,31.7445,124.15,124.02,27.89]
[1725655149305,4.0313,124.11,124.05,4.033]
[1725655149506,31.7445,124.15,124.03,1.431]
[1725655149710,2.8862,124.15,124.1,4.0313]
[1725655149912,27.89,124.13,124.04,1.4256]
[1725655150213,2.8862,124.15,124.05,27.89]
[1725655150416,2.8862,124.15,124.04,1.4256]
[1725655150710,27.89,124.14,124.04,1.4256]
[1725655150910,4.0313,124.11,124.04,1.4256]
[1725655151218,2.8862,124.15,124.03,2.8259]
[1725655151219,27.89,124.12,124.03,2.8259]
[1725655151416,4.0316,124.1,124.03,2.8259]
[1725655151713,27.89,124.12,124.03,2.8259]
[1725655152915,4.0315,124.11,124.05,4.0332]
[1725655153111,27.89,124.09,124.01,1.4206]
[1725655153320,4.12273559,124.08,123.98,1.46]
[1725655153611,27.89,124.09,124.02,4.0341]
[1725655153813,27.89,124.09,124.03,4.11184702]
[1725655154018,4.0316,124.1,124.04,4.0334]
[1725655154309,24.1894,124.14,124.04,4.09410268]
[1725655154510,24.1894,124.14,124.03,23.22]
[1725655154717,4.031,124.12,124.06,4.0328]
[1725655155219,4.031,124.12,124.07,4.0325]
[1725655155812,24.1894,124.14,124.05,4.11305686]
[1725655156017,23.22,124.14,124.05,2.9301]
[1725655156211,4.0309,124.13,124.05,2.9301]
[1725655156417,23.22,124.14,124.05,2.9301]
[1725655157022,4.0307,124.13,124.05,2.9301]
[1725655157414,23.22,124.14,124.05,2.9301]
[1725655157817,27.2504,124.14,124.05,2.9301]
[1725655158413,23.22,124.14,124.05,2.9301]
[1725655158621,23.22,124.14,124.04,5.47341832]
[1725655158622,23.22,124.11,124.04,1.4903]
[1725655158826,4.0323,124.08,124.04,5.5238]
[1725655159023,23.22,124.11,124.04,5.5238]
[1725655159220,23.22,124.11,124.04,1.4903]
[1725655159422,27.2514,124.11,124.04,1.4903]
[1725655159622,23.22,124.11,124.04,1.4903]
[1725655159920,4.0311,124.12,124.04,1.4903]
[1725655160122,23.22,124.13,124.04,1.4903]
[1725655160622,4.0318,124.1,124.04,1.4903]
[1725655161214,4.0314,124.11,124.04,1.4903]
[1725655161923,4.031,124.12,124.07,4.0325]
[1725655162125,23.22,124.13,124.04,24.7103]
[1725655162727,27.2508,124.13,124.08,4.032]
[1725655162928,26.1062,124.15,124.04,24.7103]
[1725655163415,4.0303,124.14,124.09,4.0317]
[1725655163820,4.0303,124.14,124.06,23.22]
[1725655164724,344.0,124.26,124.11,23.22]
[1725655165027,1.5203,124.21,124.11,27.29585085]
[1725655165917,1.5203,124.21,124.12,1.4121]
[1725655166122,23.22,124.2,124.12,1.4121]
[1725655166320,23.22,124.18,124.09,3.95571202]
[1725655166522,23.22,124.18,124.07,24.5933]
[1725655166523,4.0301,124.15,124.07,24.5933]
[1725655166727,23.22,124.18,124.07,24.5933]
[1725655167229,4.0299,124.16,124.07,24.5933]
[1725655167522,23.22,124.18,124.07,24.5933]
[1725655167728,4.0301,124.15,124.09,4.0317]
[1725655167923,4.0301,124.15,124.07,24.5933]
[1725655168122,4.0297,124.16,124.1,4.0315]
[1725655168325,23.22,124.18,124.07,24.5933]
[1725655169325,4.0302,124.15,124.07,24.5933]
[1725655169522,0.9704,124.19,124.07,24.5933]
[1725655169523,23.22,124.16,124.07,24.5933]
[1725655170437,4.0295,124.17,124.11,4.031]
[1725655170627,4.0295,124.17,124.11,4.11542297]
[1725655170828,23.22,124.18,124.07,24.5933]
[1725655171028,4.9991,124.19,124.13,4.0304]
[1725655171429,4.9991,124.19,124.12,3.9708782]
[1725655171636,4.9991,124.19,124.13,4.0305]
[1725655171931,23.22,124.18,124.1,3.97289346]
[1725655172120,23.22,124.18,124.11,4.031]
[1725655172325,0.9704,124.19,124.11,3.99627054]
[1725655172534,0.9704,124.19,124.1,23.22]
[1725655173033,0.9704,124.19,124.1,27.20055147]
[1725655173332,0.9704,124.19,124.14,4.0301]
[1725655173527,0.9704,124.19,124.1,27.20055147]
[1725655174529,4.0286,124.2,124.11,23.22]
[1725655175127,4.0286,124.2,124.14,4.0301]
[1725655175330,5.5483,124.21,124.11,27.1922535]
[1725655175523,5.5483,124.21,124.14,23.22]
[1725655176037,1.3892,124.22,124.17,4.0292]
[1725655176328,1.3892,124.22,124.16,23.22]
[1725655176526,1.3892,124.22,124.17,4.0291]
[1725655177230,1.471,124.25,124.16,23.22]
[1725655177425,23.22,124.21,124.05,8.071]
[1725655177636,23.22,124.21,124.09,24.719]
[1725655177833,1.4723,124.2,124.09,24.719]
[1725655178436,1.4723,124.2,124.12,4.0307]
[1725655178437,4.0292,124.18,124.12,4.0307]
[1725655178647,1.4723,124.2,124.09,24.719]
[1725655178936,4.0302,124.15,124.1,4.0314]
[1725655179330,23.22,124.17,124.06,4.412]
[1725655179734,4.03,124.15,124.06,4.412]
[1725655180324,4.03,124.15,124.09,4.0317]
[1725655180529,4.0297,124.16,124.07,23.22]
[1725655180828,28.71658956,124.18,124.06,4.412]
[1725655181033,23.22,124.16,124.06,4.412]
[1725655181234,23.22,124.13,124.06,1.5114]
[1725655181532,23.22,124.11,124.04,4.0333]
[1725655181735,23.22,124.09,124.0,2.894]
[1725655181936,23.22,124.09,124.01,8.08933735]
[1725655182236,23.22,124.09,124.0,6.93663768]
[1725655182432,7.0096,124.1,124.0,6.93663768]
[1725655182433,2.978,124.1,124.0,6.93663768]
[1725655182637,23.22,124.08,123.97,23.22]
[1725655182939,4.0333,124.05,123.98,4.0352]
[1725655183236,23.22,124.06,123.95,26.0935]
[1725655183631,27.2532,124.06,123.98,4.0354]
[1725655183837,23.22,124.06,123.95,26.0935]
[1725655185136,4.0326,124.07,124.0,4.0347]
[1725655185331,23.22,124.08,123.99,4.11753112]
[1725655185536,4.0329,124.06,124.0,4.0348]
[1725655185743,2.978,124.1,124.0,4.11026987]